[Event "Aeroflot Open 2013"]
[Site "Moscow"]
[Date "2013.02.12"]
[Round "1.2"]
[White "Fressinet, Laurent"]
[Black "Zaitsev, Alexander"]
[Result "1-0"]
[ECO "E15"]
[WhiteElo "2706"]
[BlackElo "2386"]
[Annotator "Robot 4"]
[PlyCount "155"]
[EventDate "2013.??.??"]
[EventCountry "RUS"]
[TimeControl "900+10"]

1. d4 {[%emt 0:00:00]} Nf6 {[%emt 0:00:00]} 2. Nf3 {[%emt 0:00:00]} e6 {[%emt
0:00:00]} 3. c4 {[%emt 0:00:00]} b6 {[%emt 0:00:03]} 4. g3 {[%emt 0:00:04]} Ba6
{[%emt 0:00:04]} 5. Qb3 {[%emt 0:00:03]} Nc6 {[%emt 0:01:27]} 6. Nbd2 {[%emt 0:
00:05]} Na5 {[%emt 0:00:43]} 7. Qa4 {[%emt 0:00:04]} c5 {[%emt 0:00:36]} 8.
dxc5 {[%emt 0:00:24]} bxc5 {[%emt 0:00:16]} 9. Bg2 {[%emt 0:00:03]} Bb7 {[%emt
0:00:32]} 10. O-O {[%emt 0:00:05]} Be7 {[%emt 0:00:34]} 11. Ne5 {[%emt 0:01:30]
} Bxg2 {[%emt 0:00:23]} 12. Kxg2 {[%emt 0:00:01]} O-O {[%emt 0:00:12]} 13. Ndf3
{[%emt 0:01:13]} d6 {[%emt 0:00:38]} 14. Bd2 {[%emt 0:00:43]} Nb7 {[%emt 0:00:
57]} 15. Nc6 {[%emt 0:00:26]} Qd7 {[%emt 0:00:28]} 16. Rad1 {[%emt 0:01:22]}
Rfc8 {[%emt 0:00:45]} 17. Nxe7+ {[%emt 0:00:14]} Qxe7 {[%emt 0:00:01]} 18. Bc3
{[%emt 0:01:19]} Ne4 {[%emt 0:00:24]} 19. Qc2 {[%emt 0:00:00]} Nxc3 {[%emt 0:
00:21]} 20. Qxc3 {[%emt 0:00:04]} Rab8 {[%emt 0:00:28]} 21. Rd3 {[%emt 0:00:12]
} Qf6 {[%emt 0:00:13]} 22. Qxf6 {[%emt 0:02:05]} gxf6 {[%emt 0:00:10]} 23. Nd2
{[%emt 0:00:02]} Kf8 {[%emt 0:00:10]} 24. Rd1 {[%emt 0:00:10]} Ke7 {[%emt 0:00:
06]} 25. Ne4 {[%emt 0:01:18]} Rc6 {[%emt 0:00:18]} 26. Rb3 {[%emt 0:00:23]} Rb6
{[%emt 0:00:32]} 27. Rxb6 {[%emt 0:00:13]} axb6 {[%emt 0:00:03]} 28. g4 {[%emt
0:00:03]} Ra8 {[%emt 0:01:11]} 29. Nc3 {[%emt 0:00:02]} Na5 {[%emt 0:00:21]}
30. b3 {[%emt 0:00:02]} Nc6 {[%emt 0:00:09]} 31. h3 {[%emt 0:01:13]} Na7 {
[%emt 0:00:28]} 32. Ne4 {[%emt 0:01:00]} Rd8 {[%emt 0:00:13]} 33. Rd3 {[%emt 0:
00:28]} Nc6 {[%emt 0:02:08]} 34. Rd2 {[%emt 0:00:25]} Na7 {[%emt 0:00:05]} 35.
Nc3 {[%emt 0:00:24]} Rb8 {[%emt 0:00:10]} 36. Rd3 {[%emt 0:00:12]} Nc6 {[%emt
0:01:16]} 37. Re3 {[%emt 0:00:51]} Kd7 {[%emt 0:00:36]} 38. Ne4 {[%emt 0:00:41]
} Ke7 {[%emt 0:00:03]} 39. Rd3 {[%emt 0:00:09]} Rd8 {[%emt 0:00:01]} 40. f4 {
[%emt 0:00:31]} Na7 {[%emt 0:00:11]} 41. Nc3 {[%emt 0:00:08]} Rb8 {[%emt 0:00:
05]} 42. Ne4 {[%emt 0:01:08]} Rd8 {[%emt 0:00:01]} 43. f5 {[%emt 0:00:32]} h6 {
[%emt 0:00:41]} 44. Rf3 {[%emt 0:00:49]} Rf8 {[%emt 0:01:03]} 45. Nc3 {[%emt 0:
00:18]} Rb8 {[%emt 0:00:27]} 46. Re3 {[%emt 0:00:18]} Kd7 {[%emt 0:00:02]} 47.
Ne4 {[%emt 0:00:12]} Ke7 {[%emt 0:00:01]} 48. Rd3 {[%emt 0:00:19]} Rd8 {[%emt
0:00:02]} 49. Kg3 {[%emt 0:00:07]} Nc6 {[%emt 0:00:05]} 50. Nc3 {[%emt 0:00:12]
} Nd4 {[%emt 0:00:10]} 51. Rd2 {[%emt 0:00:57]} Rb8 {[%emt 0:00:17]} 52. e3 {
[%emt 0:00:13]} Nc6 {[%emt 0:00:09]} 53. Ne4 {[%emt 0:00:15]} Rd8 {[%emt 0:00:
01]} 54. Rf2 {[%emt 0:00:09]} Rf8 {[%emt 0:00:01]} 55. Kh4 {[%emt 0:00:03]} d5
{[%emt 0:01:26]} 56. Nc3 {[%emt 0:00:00]} Rd8 {[%emt 0:00:02]} 57. Na4 {[%emt
0:00:12]} Rb8 {[%emt 0:00:03]} 58. Rd2 {[%emt 0:00:16]} d4 {[%emt 0:00:05]} 59.
exd4 {[%emt 0:00:01]} Nxd4 {[%emt 0:00:04]} 60. Kh5 {[%emt 0:00:23]} Kd6 {
[%emt 0:00:34]} 61. Nb2 {[%emt 0:00:21]} b5 {[%emt 0:00:14]} 62. Kxh6 {[%emt 0:
00:04]} Rh8+ {[%emt 0:00:34]} 63. Kg7 {[%emt 0:00:01]} Rxh3 {[%emt 0:00:00]}
64. Kxf6 {[%emt 0:00:15]} Rg3 {[%emt 0:00:03]} 65. Kxf7 {[%emt 0:00:10]} Rxg4 {
[%emt 0:00:05]} 66. f6 {[%emt 0:00:00]} Rf4 {[%emt 0:00:27]} 67. Nd3 {[%emt 0:
00:01]} Rf3 {[%emt 0:00:10]} 68. Ne1 {[%emt 0:00:11]} Rf1 {[%emt 0:00:08]} 69.
Nc2 {[%emt 0:00:33]} Ke5 {[%emt 0:00:15]} 70. Nxd4 {[%emt 0:00:01]} cxd4 {
[%emt 0:00:31]} 71. Ke7 {[%emt 0:00:01]} Ke4 {[%emt 0:00:26]} 72. f7 {[%emt 0:
00:04]} Ke3 {[%emt 0:00:06]} 73. Rh2 {[%emt 0:00:08]} b4 {[%emt 0:00:17]} 74.
f8=Q {[%emt 0:00:13]} Rxf8 {[%emt 0:00:02]} 75. Kxf8 {[%emt 0:00:02]} d3 {
[%emt 0:00:00]} 76. Ke7 {[%emt 0:00:23]} d2 {[%emt 0:00:01]} 77. Rh1 {[%emt 0:
00:04]} Ke2 {[%emt 0:00:02]} 78. Kd6 {[%emt 0:00:01]} 1-0

[Event "Aeroflot Open 2013"]
[Site "Moscow"]
[Date "2013.02.12"]
[Round "1.1"]
[White "Girya, Olga"]
[Black "Kamsky, Gata"]
[Result "0-1"]
[ECO "D15"]
[WhiteElo "2441"]
[BlackElo "2740"]
[Annotator "Robot 4"]
[PlyCount "116"]
[EventDate "2013.??.??"]
[EventCountry "RUS"]
[TimeControl "900+10"]

1. d4 {[%emt 0:00:00]} d5 {[%emt 0:00:00]} 2. Nf3 {[%emt 0:00:00]} Nf6 {[%emt
0:00:00]} 3. c4 {[%emt 0:00:00]} c6 {[%emt 0:00:00]} 4. Nc3 {[%emt 0:00:00]} a6
{[%emt 0:00:00]} 5. a4 {[%emt 0:00:14]} e6 {[%emt 0:00:04]} 6. Bf4 {[%emt 0:00:
05]} a5 {[%emt 0:00:44]} 7. e3 {[%emt 0:00:03]} Nbd7 {[%emt 0:00:06]} 8. Bd3 {
[%emt 0:00:08]} Bb4 {[%emt 0:00:03]} 9. O-O {[%emt 0:00:07]} O-O {[%emt 0:00:
02]} 10. Qe2 {[%emt 0:00:28]} b6 {[%emt 0:00:07]} 11. e4 {[%emt 0:00:44]} Bxc3
{[%emt 0:00:02]} 12. bxc3 {[%emt 0:00:07]} dxe4 {[%emt 0:00:03]} 13. Bxe4 {
[%emt 0:00:02]} Nxe4 {[%emt 0:00:02]} 14. Qxe4 {[%emt 0:00:01]} Ba6 {[%emt 0:
00:01]} 15. Qd3 {[%emt 0:01:53]} Qf6 {[%emt 0:00:19]} 16. Be5 {[%emt 0:01:25]}
Qg6 {[%emt 0:00:41]} 17. Qe2 {[%emt 0:00:01]} Rfe8 {[%emt 0:00:21]} 18. Rfd1 {
[%emt 0:00:28]} Rac8 {[%emt 0:00:11]} 19. Rab1 {[%emt 0:00:15]} h6 {[%emt 0:01:
19]} 20. Bg3 {[%emt 0:04:11]} f6 {[%emt 0:00:22]} 21. Rb2 {[%emt 0:00:18]} Qf7
{[%emt 0:02:09]} 22. h3 {[%emt 0:00:50]} c5 {[%emt 0:02:31]} 23. Nd2 {[%emt 0:
02:31]} cxd4 {[%emt 0:02:49]} 24. cxd4 {[%emt 0:00:08]} e5 {[%emt 0:00:43]} 25.
dxe5 {[%emt 0:00:21]} Nxe5 {[%emt 0:00:03]} 26. Bxe5 {[%emt 0:01:45]} Rxe5 {
[%emt 0:00:02]} 27. Qg4 {[%emt 0:00:24]} Bb7 {[%emt 0:01:16]} 28. Nf3 {[%emt 0:
01:22]} Re4 {[%emt 0:01:34]} 29. Qf5 {[%emt 0:00:01]} Rexc4 {[%emt 0:00:49]}
30. Rd7 {[%emt 0:00:21]} Be4 {[%emt 0:00:16]} 31. Rxf7 {[%emt 0:00:39]} Bxf5 {
[%emt 0:00:02]} 32. Rb7 {[%emt 0:00:08]} Be4 {[%emt 0:00:17]} 33. R7xb6 {[%emt
0:00:08]} Rxa4 {[%emt 0:00:06]} 34. Nd2 {[%emt 0:00:13]} Bd5 {[%emt 0:00:13]}
35. Rd6 {[%emt 0:00:11]} Rd4 {[%emt 0:01:09]} 36. Kh2 {[%emt 0:00:06]} a4 {
[%emt 0:00:15]} 37. Ra6 {[%emt 0:00:50]} Kh7 {[%emt 0:00:28]} 38. Nf1 {[%emt 0:
00:10]} Ra8 {[%emt 0:00:04]} 39. Rxa8 {[%emt 0:00:10]} Bxa8 {[%emt 0:00:02]}
40. Rb6 {[%emt 0:00:09]} f5 {[%emt 0:00:43]} 41. Ra6 {[%emt 0:00:09]} Be4 {
[%emt 0:00:05]} 42. Ng3 {[%emt 0:00:09]} Bd3 {[%emt 0:00:21]} 43. Ra7 {[%emt 0:
00:01]} Kg6 {[%emt 0:00:00]} 44. f3 {[%emt 0:00:17]} f4 {[%emt 0:00:00]} 45.
Nh1 {[%emt 0:00:01]} h5 {[%emt 0:00:06]} 46. Nf2 {[%emt 0:00:04]} Bf5 {[%emt 0:
00:04]} 47. h4 {[%emt 0:00:10]} Kf6 {[%emt 0:00:06]} 48. Nh3 {[%emt 0:00:13]}
g6 {[%emt 0:00:05]} 49. Ng5 {[%emt 0:00:15]} Ke5 {[%emt 0:00:03]} 50. Ra5+ {
[%emt 0:00:14]} Kd6 {[%emt 0:00:03]} 51. g3 {[%emt 0:00:32]} Kc6 {[%emt 0:00:
46]} 52. gxf4 {[%emt 0:00:02]} Kb6 {[%emt 0:00:00]} 53. Ra8 {[%emt 0:00:01]}
Kb5 {[%emt 0:00:07]} 54. Nf7 {[%emt 0:00:17]} Kb4 {[%emt 0:00:21]} 55. Ne5 {
[%emt 0:00:14]} Kb3 {[%emt 0:00:11]} 56. Kg3 {[%emt 0:00:12]} a3 {[%emt 0:00:
02]} 57. Nc6 {[%emt 0:00:04]} Ra4 {[%emt 0:00:10]} 58. Rb8+ {[%emt 0:00:00]}
Kc3 {[%emt 0:00:00]} 0-1

[Event "Aeroflot Open 2013"]
[Site "Moscow"]
[Date "2013.02.12"]
[Round "1.13"]
[White "Gorbatov, Alexej"]
[Black "Efimenko, Zahar"]
[Result "0-1"]
[ECO "B07"]
[WhiteElo "2366"]
[BlackElo "2696"]
[Annotator "Robot 4"]
[PlyCount "62"]
[EventDate "2013.??.??"]
[EventCountry "RUS"]
[TimeControl "900+10"]

1. e4 {[%emt 0:00:00]} d6 {[%emt 0:00:00]} 2. d4 {[%emt 0:00:00]} Nf6 {[%emt 0:
00:00]} 3. Nc3 {[%emt 0:00:00]} g6 {[%emt 0:00:00]} 4. g3 {[%emt 0:00:00]} Bg7
{[%emt 0:00:03]} 5. Bg2 {[%emt 0:00:00]} O-O {[%emt 0:00:13]} 6. Nge2 {[%emt 0:
00:01]} c6 {[%emt 0:00:00]} 7. a4 {[%emt 0:00:06]} a5 {[%emt 0:00:00]} 8. O-O {
[%emt 0:00:03]} Na6 {[%emt 0:00:00]} 9. h3 {[%emt 0:00:27]} Nb4 {[%emt 0:00:00]
} 10. Be3 {[%emt 0:00:17]} e5 {[%emt 0:00:04]} 11. Qd2 {[%emt 0:02:33]} Be6 {
[%emt 0:00:03]} 12. Rad1 {[%emt 0:01:59]} Bc4 {[%emt 0:00:07]} 13. Rfe1 {[%emt
0:01:08]} Re8 {[%emt 0:00:08]} 14. Qc1 {[%emt 0:01:21]} Qc7 {[%emt 0:00:13]}
15. Kh2 {[%emt 0:02:34]} Rad8 {[%emt 0:00:20]} 16. dxe5 {[%emt 0:01:01]} dxe5 {
[%emt 0:00:11]} 17. Ng1 {[%emt 0:00:23]} Nd7 {[%emt 0:00:37]} 18. Nf3 {[%emt 0:
00:11]} Nf8 {[%emt 0:00:17]} 19. Nd2 {[%emt 0:00:23]} Ba6 {[%emt 0:01:49]} 20.
Nb3 {[%emt 0:00:58]} b6 {[%emt 0:00:04]} 21. Bg5 {[%emt 0:00:37]} Rxd1 {[%emt
0:00:44]} 22. Rxd1 {[%emt 0:00:04]} Ne6 {[%emt 0:00:00]} 23. Be3 {[%emt 0:00:
03]} f5 {[%emt 0:00:14]} 24. exf5 {[%emt 0:00:38]} gxf5 {[%emt 0:00:01]} 25. h4
{[%emt 0:01:05]} f4 {[%emt 0:00:37]} 26. Bd2 {[%emt 0:00:03]} Bc4 {[%emt 0:01:
13]} 27. Ne4 {[%emt 0:00:52]} Nd3 {[%emt 0:00:46]} 28. Qb1 {[%emt 0:00:29]}
Nxf2 {[%emt 0:02:13]} 29. Nxf2 {[%emt 0:00:19]} fxg3+ {[%emt 0:00:01]} 30. Kxg3
{[%emt 0:00:49]} e4+ {[%emt 0:00:01]} 31. Kh3 {[%emt 0:00:00]} Nf4+ {[%emt 0:
00:00]} 0-1

[Event "Aeroflot Open 2013"]
[Site "Moscow"]
[Date "2013.02.12"]
[Round "1.11"]
[White "Kostin, Konstantin"]
[Black "Sasikiran, Krishnan"]
[Result "0-1"]
[ECO "A34"]
[WhiteElo "2310"]
[BlackElo "2700"]
[Annotator "Robot 4"]
[PlyCount "58"]
[EventDate "2013.??.??"]
[EventCountry "RUS"]
[TimeControl "900+10"]

1. Nf3 {[%emt 0:00:00]} Nf6 {[%emt 0:00:07]} 2. c4 {[%emt 0:00:00]} c5 {[%emt
0:00:16]} 3. Nc3 {[%emt 0:00:00]} d5 {[%emt 0:00:05]} 4. cxd5 {[%emt 0:00:00]}
Nxd5 {[%emt 0:00:00]} 5. e4 {[%emt 0:00:34]} Nb4 {[%emt 0:00:29]} 6. Bc4 {
[%emt 0:00:03]} Be6 {[%emt 0:00:14]} 7. Bxe6 {[%emt 0:00:23]} Nd3+ {[%emt 0:00:
03]} 8. Kf1 {[%emt 0:00:06]} fxe6 {[%emt 0:00:05]} 9. Qb3 {[%emt 0:01:46]} Qd7
{[%emt 0:04:35]} 10. Ng5 {[%emt 0:01:15]} Nc6 {[%emt 0:00:11]} 11. Qxe6 {[%emt
0:00:42]} O-O-O {[%emt 0:00:32]} 12. Qxd7+ {[%emt 0:00:42]} Rxd7 {[%emt 0:00:
11]} 13. Nd5 {[%emt 0:01:08]} Nd4 {[%emt 0:01:29]} 14. h4 {[%emt 0:01:51]} e6 {
[%emt 0:00:55]} 15. Ne3 {[%emt 0:00:28]} h6 {[%emt 0:01:50]} 16. Nf3 {[%emt 0:
00:01]} Be7 {[%emt 0:01:08]} 17. Ne1 {[%emt 0:01:15]} c4 {[%emt 0:01:11]} 18.
Nxd3 {[%emt 0:01:17]} cxd3 {[%emt 0:00:05]} 19. b3 {[%emt 0:00:03]} Nc2 {[%emt
0:02:23]} 20. Nxc2 {[%emt 0:01:01]} dxc2 {[%emt 0:00:01]} 21. a3 {[%emt 0:00:
00]} Rhd8 {[%emt 0:00:59]} 22. Ke2 {[%emt 0:00:37]} Rd4 {[%emt 0:00:32]} 23. f3
{[%emt 0:00:59]} Rd3 {[%emt 0:00:01]} 24. b4 {[%emt 0:00:16]} R3d6 {[%emt 0:00:
32]} 25. Ra2 {[%emt 0:00:11]} Rc6 {[%emt 0:00:01]} 26. Bb2 {[%emt 0:00:14]} g5
{[%emt 0:00:11]} 27. hxg5 {[%emt 0:01:33]} Bxg5 {[%emt 0:00:02]} 28. Bc3 {
[%emt 0:00:07]} Rxc3 {[%emt 0:00:10]} 29. dxc3 {[%emt 0:00:18]} Rd2+ {[%emt 0:
00:05]} 0-1

[Event "Aeroflot Open 2013"]
[Site "Moscow"]
[Date "2013.02.12"]
[Round "2.2"]
[White "Pridorozhni, Aleksei"]
[Black "Fressinet, Laurent"]
[Result "1/2-1/2"]
[ECO "C33"]
[WhiteElo "2555"]
[BlackElo "2706"]
[Annotator "Robot 4"]
[PlyCount "49"]
[EventDate "2013.??.??"]
[EventCountry "RUS"]
[TimeControl "900+10"]

1. e4 {[%emt 0:00:00]} e5 {[%emt 0:00:02]} 2. f4 {[%emt 0:00:00]} exf4 {[%emt
0:00:11]} 3. Bc4 {[%emt 0:00:00]} Nf6 {[%emt 0:00:15]} 4. Nc3 {[%emt 0:00:00]}
d5 {[%emt 0:00:23]} 5. Bxd5 {[%emt 0:00:00]} Nxd5 {[%emt 0:00:29]} 6. Nxd5 {
[%emt 0:00:03]} g5 {[%emt 0:00:02]} 7. h4 {[%emt 0:00:53]} Be6 {[%emt 0:01:42]}
8. hxg5 {[%emt 0:00:48]} Bxd5 {[%emt 0:00:29]} 9. exd5 {[%emt 0:00:02]} Qxg5 {
[%emt 0:00:02]} 10. Qf3 {[%emt 0:00:19]} Na6 {[%emt 0:00:45]} 11. d4 {[%emt 0:
02:21]} Nb4 {[%emt 0:01:20]} 12. Bxf4 {[%emt 0:00:05]} Qf5 {[%emt 0:01:54]} 13.
Be5 {[%emt 0:01:35]} Nxc2+ {[%emt 0:00:15]} 14. Kd1 {[%emt 0:00:03]} Rg8 {
[%emt 0:00:24]} 15. Qxf5 {[%emt 0:01:04]} Ne3+ {[%emt 0:00:03]} 16. Ke2 {[%emt
0:00:01]} Nxf5 {[%emt 0:00:01]} 17. Kf3 {[%emt 0:00:01]} Be7 {[%emt 0:01:36]}
18. g4 {[%emt 0:00:58]} Nh4+ {[%emt 0:01:07]} 19. Kg3 {[%emt 0:00:02]} Nf5+ {
[%emt 0:01:55]} 20. Kf4 {[%emt 0:00:32]} Nh4 {[%emt 0:02:00]} 21. Kg3 {[%emt 0:
02:07]} Nf5+ {[%emt 0:00:03]} 22. Kf4 {[%emt 0:00:01]} Nh4 {[%emt 0:01:03]} 23.
Kg3 {[%emt 0:00:02]} Nf5+ {[%emt 0:00:42]} 24. Kf4 {[%emt 0:00:02]} Nh4 {[%emt
0:00:06]} 25. Kg3 {[%emt 0:03:39]} 1/2-1/2

[Event "Aeroflot Open 2013"]
[Site "Moscow"]
[Date "2013.02.12"]
[Round "1.12"]
[White "Riazantsev, Alexander"]
[Black "Pustovoitova, Daria"]
[Result "1-0"]
[ECO "D85"]
[WhiteElo "2705"]
[BlackElo "2257"]
[Annotator "Robot 4"]
[PlyCount "63"]
[EventDate "2013.??.??"]
[EventCountry "RUS"]
[TimeControl "900+10"]

1. d4 {[%emt 0:00:00]} Nf6 {[%emt 0:00:00]} 2. c4 {[%emt 0:00:05]} g6 {[%emt 0:
00:06]} 3. Nc3 {[%emt 0:00:05]} d5 {[%emt 0:00:02]} 4. cxd5 {[%emt 0:00:40]}
Nxd5 {[%emt 0:00:05]} 5. Bd2 {[%emt 0:00:02]} Bg7 {[%emt 0:00:22]} 6. e4 {
[%emt 0:00:04]} Nb6 {[%emt 0:00:04]} 7. Be3 {[%emt 0:00:06]} O-O {[%emt 0:00:
10]} 8. Bb5 {[%emt 0:00:05]} Bd7 {[%emt 0:04:45]} 9. Be2 {[%emt 0:00:12]} Nc6 {
[%emt 0:00:06]} 10. f4 {[%emt 0:00:54]} Na5 {[%emt 0:00:28]} 11. Qc2 {[%emt 0:
02:55]} f5 {[%emt 0:02:54]} 12. e5 {[%emt 0:00:19]} Bc6 {[%emt 0:00:20]} 13.
Nf3 {[%emt 0:00:33]} Nd5 {[%emt 0:00:23]} 14. Nxd5 {[%emt 0:00:04]} Bxd5 {
[%emt 0:00:08]} 15. b4 {[%emt 0:01:41]} Nc6 {[%emt 0:00:25]} 16. b5 {[%emt 0:
00:01]} Nb8 {[%emt 0:00:39]} 17. O-O {[%emt 0:00:25]} Nd7 {[%emt 0:01:31]} 18.
a4 {[%emt 0:00:07]} c6 {[%emt 0:00:09]} 19. bxc6 {[%emt 0:00:42]} bxc6 {[%emt
0:00:04]} 20. a5 {[%emt 0:00:00]} Rc8 {[%emt 0:00:18]} 21. Ba6 {[%emt 0:01:26]}
Rc7 {[%emt 0:00:14]} 22. Bc4 {[%emt 0:00:02]} e6 {[%emt 0:00:44]} 23. Rfc1 {
[%emt 0:00:01]} Rb7 {[%emt 0:00:00]} 24. Bxd5 {[%emt 0:00:34]} cxd5 {[%emt 0:
00:09]} 25. Qc6 {[%emt 0:00:02]} Rb3 {[%emt 0:00:18]} 26. Qxe6+ {[%emt 0:00:02]
} Kh8 {[%emt 0:00:00]} 27. Bf2 {[%emt 0:00:13]} Nb8 {[%emt 0:00:37]} 28. Bh4 {
[%emt 0:00:45]} Re8 {[%emt 0:01:34]} 29. Qf7 {[%emt 0:01:30]} Qd7 {[%emt 0:00:
40]} 30. Qxd7 {[%emt 0:00:43]} Nxd7 {[%emt 0:00:10]} 31. Rc7 {[%emt 0:00:31]}
Nf8 {[%emt 0:00:42]} 32. Rxa7 {[%emt 0:00:00]} 1-0

[Event "Aeroflot Open 2013"]
[Site "Moscow"]
[Date "2013.02.12"]
[Round "2.11"]
[White "Rychagov, Andrey"]
[Black "Riazantsev, Alexander"]
[Result "0-1"]
[ECO "E32"]
[WhiteElo "2561"]
[BlackElo "2705"]
[Annotator "Robot 4"]
[PlyCount "58"]
[EventDate "2013.??.??"]
[EventCountry "RUS"]
[TimeControl "900+10"]

1. d4 {[%emt 0:00:00]} Nf6 {[%emt 0:00:00]} 2. c4 {[%emt 0:00:00]} e6 {[%emt 0:
00:00]} 3. Nc3 {[%emt 0:00:00]} Bb4 {[%emt 0:00:00]} 4. Qc2 {[%emt 0:00:00]} d6
{[%emt 0:00:00]} 5. Nf3 {[%emt 0:00:11]} Nbd7 {[%emt 0:00:15]} 6. Bg5 {[%emt 0:
00:11]} h6 {[%emt 0:00:44]} 7. Bh4 {[%emt 0:00:12]} b6 {[%emt 0:01:11]} 8. e3 {
[%emt 0:01:10]} Bb7 {[%emt 0:00:01]} 9. Be2 {[%emt 0:00:13]} g5 {[%emt 0:00:36]
} 10. Bg3 {[%emt 0:00:10]} Ne4 {[%emt 0:00:00]} 11. Bd3 {[%emt 0:03:29]} Bxc3+
{[%emt 0:00:00]} 12. bxc3 {[%emt 0:00:10]} f5 {[%emt 0:00:00]} 13. O-O {[%emt
0:01:04]} Qe7 {[%emt 0:05:10]} 14. c5 {[%emt 0:01:41]} bxc5 {[%emt 0:00:22]}
15. Rab1 {[%emt 0:00:32]} Bc6 {[%emt 0:00:01]} 16. Nd2 {[%emt 0:01:16]} Nxd2 {
[%emt 0:01:19]} 17. Qxd2 {[%emt 0:00:02]} O-O {[%emt 0:02:20]} 18. f3 {[%emt 0:
00:36]} e5 {[%emt 0:00:11]} 19. Qc2 {[%emt 0:02:22]} Qe6 {[%emt 0:00:59]} 20.
Rfd1 {[%emt 0:02:31]} Rae8 {[%emt 0:01:06]} 21. Bf2 {[%emt 0:00:13]} e4 {[%emt
0:01:39]} 22. fxe4 {[%emt 0:00:07]} Bxe4 {[%emt 0:00:00]} 23. Bxe4 {[%emt 0:00:
11]} fxe4 {[%emt 0:00:05]} 24. Rb7 {[%emt 0:00:05]} Nf6 {[%emt 0:00:22]} 25.
Rxc7 {[%emt 0:01:02]} Ng4 {[%emt 0:00:22]} 26. Rd2 {[%emt 0:00:02]} cxd4 {
[%emt 0:00:01]} 27. cxd4 {[%emt 0:00:13]} Rc8 {[%emt 0:00:00]} 28. h3 {[%emt 0:
00:32]} Rxc7 {[%emt 0:00:12]} 29. Qxc7 {[%emt 0:00:12]} Rc8 {[%emt 0:00:00]}
0-1

[Event "Aeroflot Open 2013"]
[Site "Moscow"]
[Date "2013.02.12"]
[Round "2.10"]
[White "Sasikiran, Krishnan"]
[Black "Kosintseva, Tatiana"]
[Result "1-0"]
[ECO "E08"]
[WhiteElo "2700"]
[BlackElo "2517"]
[Annotator "Robot 4"]
[PlyCount "147"]
[EventDate "2013.??.??"]
[EventCountry "RUS"]
[TimeControl "900+10"]

1. d4 {[%emt 0:00:00]} Nf6 {[%emt 0:00:46]} 2. c4 {[%emt 0:00:00]} e6 {[%emt 0:
00:02]} 3. g3 {[%emt 0:00:00]} d5 {[%emt 0:00:18]} 4. Bg2 {[%emt 0:00:01]} Bb4+
{[%emt 0:00:21]} 5. Bd2 {[%emt 0:00:04]} Be7 {[%emt 0:00:00]} 6. Nf3 {[%emt 0:
00:29]} O-O {[%emt 0:00:09]} 7. O-O {[%emt 0:00:03]} c6 {[%emt 0:00:00]} 8. Qc2
{[%emt 0:00:12]} b6 {[%emt 0:00:06]} 9. Rd1 {[%emt 0:00:14]} Bb7 {[%emt 0:00:
19]} 10. Bf4 {[%emt 0:00:18]} Nbd7 {[%emt 0:00:13]} 11. Ne5 {[%emt 0:00:03]}
Nh5 {[%emt 0:04:37]} 12. Bd2 {[%emt 0:00:02]} Nhf6 {[%emt 0:00:04]} 13. cxd5 {
[%emt 0:00:07]} cxd5 {[%emt 0:00:04]} 14. Nc6 {[%emt 0:00:02]} Bxc6 {[%emt 0:
00:21]} 15. Qxc6 {[%emt 0:00:03]} Rc8 {[%emt 0:00:29]} 16. Qb5 {[%emt 0:00:04]}
Nb8 {[%emt 0:00:08]} 17. Nc3 {[%emt 0:00:28]} Nc6 {[%emt 0:00:30]} 18. e3 {
[%emt 0:00:16]} Qd7 {[%emt 0:01:48]} 19. Rac1 {[%emt 0:00:54]} Na5 {[%emt 0:00:
52]} 20. Qe2 {[%emt 0:01:09]} Nc4 {[%emt 0:00:18]} 21. Be1 {[%emt 0:00:02]} Rc7
{[%emt 0:00:33]} 22. e4 {[%emt 0:02:15]} dxe4 {[%emt 0:01:19]} 23. Nxe4 {[%emt
0:01:20]} Nxe4 {[%emt 0:00:02]} 24. Bxe4 {[%emt 0:00:11]} Nd6 {[%emt 0:00:42]}
25. Rxc7 {[%emt 0:00:41]} Qxc7 {[%emt 0:00:01]} 26. Bg2 {[%emt 0:00:07]} Qc4 {
[%emt 0:01:02]} 27. Qxc4 {[%emt 0:03:21]} Nxc4 {[%emt 0:00:10]} 28. b3 {[%emt
0:00:01]} Nb2 {[%emt 0:00:20]} 29. Rd2 {[%emt 0:01:19]} Bb4 {[%emt 0:00:01]}
30. Re2 {[%emt 0:00:44]} Bxe1 {[%emt 0:00:45]} 31. Rxe1 {[%emt 0:00:02]} Rd8 {
[%emt 0:00:53]} 32. Bf1 {[%emt 0:00:49]} Rxd4 {[%emt 0:00:23]} 33. Rc1 {[%emt
0:00:06]} g6 {[%emt 0:00:12]} 34. Rc7 {[%emt 0:01:01]} a5 {[%emt 0:01:08]} 35.
Bb5 {[%emt 0:00:30]} Rd1+ {[%emt 0:00:33]} 36. Kg2 {[%emt 0:00:06]} Nd3 {[%emt
0:00:02]} 37. Rb7 {[%emt 0:01:37]} Ne1+ {[%emt 0:00:44]} 38. Kf1 {[%emt 0:00:
12]} Nc2+ {[%emt 0:00:18]} 39. Ke2 {[%emt 0:00:01]} Ra1 {[%emt 0:00:08]} 40.
Be8 {[%emt 0:00:16]} Rxa2 {[%emt 0:00:08]} 41. Bxf7+ {[%emt 0:00:26]} Kf8 {
[%emt 0:00:00]} 42. Kd3 {[%emt 0:00:42]} Nb4+ {[%emt 0:00:12]} 43. Ke3 {[%emt
0:00:30]} Nd5+ {[%emt 0:00:37]} 44. Kf3 {[%emt 0:00:14]} Rb2 {[%emt 0:00:18]}
45. Bxe6 {[%emt 0:00:04]} Rxb3+ {[%emt 0:00:06]} 46. Ke4 {[%emt 0:00:35]} Nc3+
{[%emt 0:00:11]} 47. Kd4 {[%emt 0:00:36]} Ra3 {[%emt 0:00:07]} 48. Rxb6 {[%emt
0:00:13]} Ne2+ {[%emt 0:00:15]} 49. Ke5 {[%emt 0:00:04]} Rf3 {[%emt 0:00:05]}
50. Bg4 {[%emt 0:00:17]} Rxf2 {[%emt 0:00:17]} 51. Rb2 {[%emt 0:00:01]} Rxh2 {
[%emt 0:00:17]} 52. Bxe2 {[%emt 0:00:13]} Kg7 {[%emt 0:00:09]} 53. Kf4 {[%emt
0:00:11]} Rf2+ {[%emt 0:00:07]} 54. Ke3 {[%emt 0:00:03]} Rf5 {[%emt 0:00:08]}
55. Rb7+ {[%emt 0:00:08]} Kh6 {[%emt 0:00:08]} 56. Ra7 {[%emt 0:00:01]} Rc5 {
[%emt 0:00:00]} 57. Kf2 {[%emt 0:00:08]} Rf5+ {[%emt 0:00:04]} 58. Kg2 {[%emt
0:00:02]} Re5 {[%emt 0:00:03]} 59. Bc4 {[%emt 0:00:02]} Rc5 {[%emt 0:00:30]}
60. Be6 {[%emt 0:00:29]} Re5 {[%emt 0:00:19]} 61. Bg8 {[%emt 0:00:03]} Re8 {
[%emt 0:00:05]} 62. Rxh7+ {[%emt 0:00:17]} Kg5 {[%emt 0:00:00]} 63. Bd5 {[%emt
0:00:00]} Re5 {[%emt 0:00:15]} 64. Bf3 {[%emt 0:00:09]} Rc5 {[%emt 0:00:16]}
65. Ra7 {[%emt 0:00:02]} Kf5 {[%emt 0:00:05]} 66. Ra6 {[%emt 0:00:14]} g5 {
[%emt 0:00:04]} 67. Kh3 {[%emt 0:00:00]} Ke5 {[%emt 0:00:15]} 68. Kg4 {[%emt 0:
00:11]} Kd4 {[%emt 0:00:01]} 69. Bd1 {[%emt 0:00:22]} Kc3 {[%emt 0:00:31]} 70.
Bf3 {[%emt 0:00:17]} Kb4 {[%emt 0:00:11]} 71. Bc6 {[%emt 0:00:12]} Kb3 {[%emt
0:00:08]} 72. Bd7 {[%emt 0:00:03]} Kb4 {[%emt 0:00:11]} 73. Rb6+ {[%emt 0:00:
19]} Kc3 {[%emt 0:00:08]} 74. Rc6 {[%emt 0:00:16]} 1-0